lending/lending_fUSD_20240128
["ID","MTS","AMOUNT","RATE_DAILY","PERIOD"]
[312927821,1706462428409,500.0,0.00053424,31]
[312927822,1706462428446,500.0,0.00053698,31]
[312927823,1706462428482,500.0,0.00052328,31]
[312927824,1706462428726,500.0,0.00053972,31]
[312927825,1706462428767,500.0,0.00052602,31]
[312927826,1706462429003,500.0,0.00052876,31]
[312927827,1706462429068,500.0,0.00053698,31]
[312927828,1706462429311,500.0,0.0005315,31]
[312927829,1706462429349,500.0,0.00054246,31]
[312927830,1706462429385,500.0,0.00053972,31]
[312927831,1706462429568,500.0,0.00053424,31]
[312927832,1706462429603,500.0,0.00054246,31]
[312927833,1706462429638,500.0,0.0005452,120]
[312927834,1706462429733,500000.0,0.000545,120]
[312927835,1706462429911,500.0,0.00054794,120]
[312927836,1706462430174,500.0,0.00053698,31]
[312927837,1706462430210,500.0,0.0005452,120]
[312927838,1706462430488,500.0,0.00054794,120]
[312927839,1706462430771,500.0,0.00053972,31]
[312927840,1706462431050,500.0,0.00054246,31]
[312927841,1706462431327,500.0,0.0005452,120]
[312927842,1706462431595,500.0,0.00054794,120]
[312927843,1706462433226,500.0,0.00052054,31]
[312927844,1706462433503,532.92,0.00052054,31]
[312927845,1706462433658,500.0,0.00052054,31]
[312927846,1706462433774,532.92,0.00052328,31]
[312927847,1706462433880,500.0,0.00052328,31]
[312927848,1706462433922,500.0,0.00052328,31]
[312927849,1706462434037,532.92,0.00052602,31]
[312927850,1706462434163,500.0,0.00052602,31]
[312927851,1706462434225,500.0,0.00052602,31]
[312927852,1706462434298,532.92,0.00052876,31]
[312927853,1706462434427,565.6377532,0.00052876,31]
[312927854,1706462434589,500.0,0.00052876,31]
[312927855,1706462434820,500.0,0.0005315,31]
[312927856,1706462434928,532.92,0.0005315,31]
[312927857,1706462435288,500.0,0.00053424,31]
[312927858,1706462435330,532.92,0.00053424,31]
[312927859,1706462435376,500.0,0.00053698,31]
[312927860,1706462435528,532.92,0.00053698,31]
[312927861,1706462435619,500.0,0.00053972,31]
[312927862,1706462435825,532.92,0.00053972,31]
[312927863,1706462436099,532.92,0.00054246,31]
[312927864,1706462436223,582.24,0.00054246,31]
[312927865,1706462436268,500.0,0.00052054,31]
[312927866,1706462436372,532.92,0.0005452,120]
[312927867,1706462436660,532.92,0.00054794,120]
[312927868,1706462436845,500.0,0.00052328,31]
[312927869,1706462437140,500.0,0.00052602,31]
[312927870,1706462437296,500.0,0.00052054,31]
[312927871,1706462437583,500.0,0.00052328,31]
[312927872,1706462437808,500.0,0.00052876,31]
[312927873,1706462438084,498.5896531,0.0005315,31]
[312927874,1706462438124,500.0,0.00052602,31]
[312927875,1706462438162,593.1726038,0.00052054,31]
[312927876,1706462438493,500.0,0.00052876,31]
[312927877,1706462438757,500.0,0.0005315,31]
[312927878,1706462439003,719.0,0.00054,60]
[312927879,1706462439044,500.0,0.00053424,31]
[312927880,1706462439142,500.0,0.00052054,31]
[312927881,1706462439332,487.48530295,0.00053698,31]
[312927882,1706462439781,500.0,0.00052328,31]
[312927883,1706462440083,500.0,0.00052602,31]
[312927884,1706462440347,500.0,0.00052876,31]
[312927885,1706462440667,500.0,0.0005315,31]
[312927886,1706462440923,244.54866294,0.00053424,31]
[312927887,1706462441430,500.0,0.00052054,31]
[312927888,1706462441749,500.0,0.00052328,31]
[312927889,1706462442011,500.0,0.00052602,31]
[312927890,1706462442302,500.0,0.00052876,31]
[312927891,1706462442574,500.0,0.0005315,31]
[312927892,1706462442844,500.0,0.00053424,31]
[312927893,1706462443128,500.0,0.00053698,31]
[312927894,1706462443403,500.0,0.00053972,31]
[312927895,1706462443452,500.0,0.00052054,31]
[312927896,1706462443678,500.0,0.00054246,31]
[312927897,1706462443730,500.0,0.00052328,31]
[312927898,1706462443771,500.0,0.00052054,31]
[312927899,1706462443949,500.0,0.0005452,120]
[312927900,1706462444017,500.0,0.00052328,31]
[312927901,1706462444057,500.0,0.00052602,31]
[312927902,1706462444215,500.0,0.00054794,120]
[312927903,1706462444332,500.0,0.00052602,31]
[312927904,1706462444369,500.0,0.00052876,31]
[312927905,1706462444567,500.0,0.00052876,31]
[312927906,1706462444726,500.0,0.0005315,31]
[312927907,1706462445175,500.0,0.00053424,31]
[312927908,1706462445216,222.03709949,0.0005315,31]
[312927909,1706462445426,500.0,0.00053698,31]
[312927910,1706462445697,500.0,0.00053972,31]
[312927911,1706462445773,500000.0,0.000545,120]
[312927912,1706462446056,616.93,0.00052054,31]
[312927913,1706462446327,446.47986045,0.00054246,31]
[312927914,1706462446657,616.93,0.00052328,31]
[312927915,1706462446911,616.93,0.00052602,31]
[312927916,1706462446960,500000.0,0.000545,120]
[312927917,1706462447096,500.0,0.00052054,31]
[312927918,1706462447170,616.93,0.00052876,31]
[312927919,1706462447335,500.0,0.00052054,31]
[312927920,1706462447373,500.0,0.00052328,31]
[312927921,1706462447457,616.93,0.0005315,31]
[312927922,1706462447622,500.0,0.00052328,31]
[312927923,1706462447660,500.0,0.00052602,31]
[312927924,1706462448033,500.0,0.00052602,31]
[312927925,1706462448070,616.93,0.00053424,31]
[312927926,1706462448167,500.0,0.00052054,31]
[312927927,1706462448201,500.0,0.00052054,31]
[312927928,1706462448235,500.0,0.00052876,31]
[312927929,1706462448333,616.93,0.00053698,31]
[312927930,1706462448470,500.0,0.00052328,31]
[312927931,1706462448517,500.0,0.00052876,31]
[312927932,1706462448612,616.93,0.00053972,31]
[312927933,1706462448816,500.0,0.00052602,31]
[312927934,1706462448854,500.0,0.00052328,31]
[312927935,1706462448891,500.0,0.0005315,31]
[312927936,1706462448934,616.93,0.00054246,31]
[312927937,1706462449090,500.0,0.00052876,31]
[312927938,1706462449124,710.24,0.00052054,31]
[312927939,1706462449173,616.93,0.0005452,120]
[312927940,1706462449208,500.0,0.0005315,31]
[312927941,1706462449441,500.0,0.00052602,31]
[312927942,1706462449476,710.24,0.00052328,31]
[312927943,1706462449608,500.0,0.0005315,31]
[312927944,1706462449741,500.0,0.00052876,31]
[312927945,1706462449807,500.0,0.00052054,31]
[312927946,1706462449843,500.0,0.00053424,31]
[312927947,1706462449879,616.93,0.00054794,120]
[312927948,1706462449914,286.86,0.00053424,31]
[312927949,1706462449950,577.63226532,0.00053424,31]
[312927950,1706462450008,500.0,0.0005315,31]
[312927951,1706462450051,710.24,0.00052602,31]
[312927952,1706462450100,500.0,0.00052328,31]
[312927953,1706462450335,710.24,0.00052876,31]
[312927954,1706462450387,270.81661369,0.00052602,31]
[312927955,1706462450425,500.0,0.00053698,31]
[312927956,1706462450590,710.24,0.0005315,31]
[312927957,1706462450639,500.0,0.00053424,31]
[312927958,1706462450702,500.0,0.00053972,31]
[312927959,1706462450924,500.0,0.00053698,31]
[312927960,1706462450981,500.0,0.00054246,31]
[312927961,1706462451210,710.24,0.00053424,31]
[312927962,1706462451246,500.0,0.00053972,31]
[312927963,1706462451492,500.0,0.00054246,31]
[312927964,1706462451534,500.0,0.00052054,31]
[312927965,1706462451603,528.50633033,0.0005452,120]
[312927966,1706462451751,512.40441623,0.0005452,120]
[312927967,1706462451805,710.24,0.00053698,31]
[312927968,1706462451842,500.0,0.00052328,31]
[312927969,1706462452088,710.24,0.00053972,31]
[312927970,1706462452122,500.0,0.00052602,31]
[312927971,1706462452359,498.81,0.00052876,31]
[312927972,1706462452392,710.24,0.00054246,31]
[312927973,1706462452855,500.0,0.00052054,31]
[312927974,1706462453022,710.24,0.0005452,120]
[312927975,1706462453145,500.0,0.00052328,31]
[312927976,1706462453419,500.0,0.00052602,31]
[312927977,1706462453725,710.24,0.00054794,120]
[312927978,1706462453814,500.0,0.00052876,31]
[312927979,1706462454111,500.0,0.0005315,31]
[312927980,1706462454399,500.0,0.00053424,31]
[312927981,1706462454688,500.0,0.00053698,31]
[312927982,1706462455168,500.0,0.00052054,31]
[312927983,1706462455287,500.0,0.00053972,31]
[312927984,1706462455424,500.0,0.00052328,31]
[312927985,1706462455726,500.0,0.00052602,31]
[312927986,1706462455930,500.0,0.00054246,31]
[312927987,1706462456192,500.0,0.0005452,120]
[312927988,1706462456404,500.0,0.00052876,31]
[312927989,1706462456475,429.5,0.00054794,120]
[312927990,1706462456687,522.44,0.0005315,31]
[312927991,1706462458067,500.0,0.00052054,31]
[312927992,1706462458683,500.0,0.00052328,31]
[312927993,1706462458936,500.0,0.00052602,31]
[312927994,1706462459196,500.0,0.00052876,31]
[312927995,1706462459827,500.0,0.0005315,31]
[312927996,1706462460130,500.0,0.00053424,31]
[312927997,1706462460390,500000.0,0.000545,120]
[312927998,1706462460427,500.0,0.00053698,31]
[312927999,1706462460843,500.0,0.00053972,31]
[312928000,1706462460967,500.0,0.00054246,31]
[312928001,1706462461501,2134.4,0.00052054,31]
[312928002,1706462461567,500.0,0.00052054,31]
[312928003,1706462461621,500.0,0.00052054,31]
[312928004,1706462461690,500.0,0.0005452,120]
[312928005,1706462461783,2134.4,0.00052328,31]
[312928006,1706462461848,500.0,0.00052328,31]
[312928007,1706462461902,500.0,0.00054794,120]
[312928008,1706462462042,2134.4,0.00052602,31]
[312928009,1706462462169,500.0,0.00052328,31]
[312928010,1706462462214,500.0,0.00052602,31]
[312928011,1706462462310,2134.4,0.00052876,31]
[312928012,1706462462454,500.0,0.00052876,31]
[312928013,1706462462490,500.0,0.00052602,31]
[312928014,1706462462572,2134.4,0.0005315,31]
[312928015,1706462462707,541.24609037,0.0005315,31]
[312928016,1706462462743,376.82638544,0.00052876,31]
[312928017,1706462463124,500.0,0.00052054,31]
[312928018,1706462463376,500.0,0.00052328,31]
[312928019,1706462463681,256.11,0.00052602,31]
[312928020,1706462464205,500000.0,0.000545,120]
[312928021,1706462464306,2134.4,0.00053424,31]
[312928022,1706462464952,2134.4,0.00053698,31]
[312928023,1706462465237,2134.4,0.00053972,31]
[312928024,1706462465279,500.0,0.00052054,31]
[312928025,1706462465502,2134.4,0.00054246,31]
[312928026,1706462465544,500.0,0.00052328,31]
[312928027,1706462465764,2134.4,0.0005452,120]
[312928028,1706462466042,2134.4,0.00054794,120]
[312928029,1706462466083,500.0,0.00052054,31]
[312928030,1706462466130,263.57373475,0.00052602,31]
[312928031,1706462466358,500.0,0.00052328,31]
[312928032,1706462466698,500.0,0.00052602,31]
[312928033,1706462467307,500.0,0.00052876,31]
[312928034,1706462467488,500.0,0.00052054,31]
[312928035,1706462467625,500.0,0.0005315,31]
[312928036,1706462467717,500.0,0.00052328,31]
[312928037,1706462467786,500.0,0.00052054,31]
[312928038,1706462467905,500.0,0.00053424,31]
[312928039,1706462467951,500.0,0.00052054,31]
[312928040,1706462467999,500.0,0.00052054,31]
[312928041,1706462468041,500.0,0.00052602,31]
[312928042,1706462468199,500.0,0.00053698,31]
[312928043,1706462468238,500.0,0.00052328,31]
[312928044,1706462468287,500.0,0.00052328,31]
[312928045,1706462468326,320.08564562,0.00052876,31]
[312928046,1706462468388,500.0,0.00052328,31]
[312928047,1706462468499,379.64621999,0.00052602,31]
[312928048,1706462468547,500.0,0.00053972,31]
[312928049,1706462468585,500.0,0.00052602,31]
[312928050,1706462468675,500.0,0.00052602,31]
[312928051,1706462468783,500.0,0.00054246,31]
[312928052,1706462468847,500.0,0.00052876,31]
[312928053,1706462468949,628.7,0.00052876,31]
[312928054,1706462469132,500.0,0.0005315,31]
[312928055,1706462469390,500.0,0.0005452,120]
[312928056,1706462469440,500.0,0.00053424,31]
[312928057,1706462469662,500.0,0.00054794,120]
[312928058,1706462469722,500.0,0.00053698,31]
[312928059,1706462469988,500.0,0.00053972,31]
[312928060,1706462470233,3000.0,0.00054794,72]
[312928061,1706462470462,500.38840403,0.00054246,31]
[312928062,1706462475383,500.0,0.00052054,31]
[312928063,1706462475575,500.0,0.00052328,31]
[312928064,1706462475820,500.0,0.00052602,31]
[312928065,1706462476091,500.0,0.00052876,31]
[312928066,1706462476456,409.2,0.0005315,31]
[312928067,1706462477518,520.17,0.00052054,31]
[312928068,1706462477913,500.0,0.00052054,31]
[312928069,1706462478120,520.17,0.00052328,31]
[312928070,1706462478213,500.0,0.00052328,31]
[312928071,1706462478389,520.17,0.00052602,31]
[312928072,1706462478558,500.0,0.00052054,31]
[312928073,1706462478675,500.0,0.00052602,31]
[312928074,1706462478823,500.0,0.00052328,31]
[312928075,1706462478981,520.17,0.00052876,31]
[312928076,1706462479294,500.0,0.00052602,31]
[312928077,1706462479336,520.17,0.0005315,31]
[312928078,1706462479377,500.0,0.00052876,31]
[312928079,1706462479423,500.0,0.00052054,31]
[312928080,1706462479588,500.0,0.0005315,31]
[312928081,1706462479626,622.03056818,0.00052876,31]
[312928082,1706462479667,520.17,0.00053424,31]
[312928083,1706462479713,500.0,0.00052328,31]
[312928084,1706462479869,500.0,0.00053424,31]
[312928085,1706462479912,520.17,0.00053698,31]
[312928086,1706462480004,500.0,0.00052602,31]
[312928087,1706462480137,500.0,0.00053698,31]
[312928088,1706462480403,520.17,0.00053972,31]
[312928089,1706462480447,500.0,0.00053972,31]
[312928090,1706462480585,500.0,0.00052876,31]
[312928091,1706462480662,520.17,0.00054246,31]
[312928092,1706462480841,500.0,0.0005315,31]
[312928093,1706462480954,520.17,0.0005452,120]
[312928094,1706462481074,500.0,0.00054246,31]
[312928095,1706462481223,520.17,0.00054794,120]
[312928096,1706462481684,500.0,0.0005452,120]
[312928097,1706462481867,500.0,0.00053424,31]
[312928098,1706462481973,500.0,0.00054794,120]
[312928099,1706462482172,500.0,0.00053698,31]
[312928100,1706462482443,500.0,0.00053972,31]
[312928101,1706462482764,500.0,0.00054246,31]
[312928102,1706462483044,500.0,0.0005452,120]
[312928103,1706462483330,500.0,0.00054794,120]
[312928104,1706462483534,500.0,0.00052054,31]
[312928105,1706462483813,500.0,0.00052328,31]
[312928106,1706462484104,500.0,0.00052602,31]
[312928107,1706462484398,500.0,0.00052876,31]
[312928108,1706462484439,500.0,0.00052054,31]
[312928109,1706462484669,500.0,0.0005315,31]
[312928110,1706462484709,500.0,0.00052328,31]
[312928111,1706462484952,500.0,0.00053424,31]
[312928112,1706462485246,500.0,0.00053698,31]
[312928113,1706462485286,213.94,0.00052602,31]
[312928114,1706462485882,500.0,0.00053972,31]
[312928115,1706462486485,500.0,0.00054246,31]
[312928116,1706462486778,234.20308679,0.0005452,120]
[312928117,1706462487333,500.0,0.00052054,31]
[312928118,1706462487616,500.0,0.00052328,31]
[312928119,1706462487755,375.46,0.00052054,31]
[312928120,1706462487916,500.0,0.00052602,31]
[312928121,1706462488204,500.0,0.00052876,31]
[312928122,1706462488495,500.0,0.0005315,31]
[312928123,1706462488842,500.0,0.00053424,31]
[312928124,1706462489062,500.0,0.00052054,31]
[312928125,1706462489134,500.0,0.00053698,31]
[312928126,1706462489526,500.0,0.00052328,31]
[312928127,1706462489565,500.0,0.00053972,31]
[312928128,1706462489612,367.78570464,0.00052602,31]
[312928129,1706462489734,500.0,0.00054246,31]
[312928130,1706462490015,500.0,0.0005452,120]
[312928131,1706462490292,500.0,0.00054794,120]
[312928132,1706462490855,500.0,0.00052054,31]
[312928133,1706462491162,500.0,0.00052328,31]
[312928134,1706462491487,500.0,0.00052602,31]
[312928135,1706462491630,500.0,0.00052054,31]
[312928136,1706462491760,500.0,0.00052876,31]
[312928137,1706462491977,500.0,0.00052328,31]
[312928138,1706462492108,581.22,0.0005315,31]
[312928139,1706462492768,500.0,0.00052602,31]
[312928140,1706462493297,500.0,0.00052876,31]
[312928141,1706462493605,500.0,0.0005315,31]
[312928142,1706462493917,394.69724839,0.00053424,31]
[312928143,1706462494810,500.0,0.00052054,31]
[312928144,1706462495101,500.0,0.00052328,31]
[312928145,1706462495383,500.0,0.00052602,31]
[312928146,1706462495985,500.0,0.00052876,31]
[312928147,1706462496279,500.0,0.0005315,31]
[312928148,1706462496869,500.0,0.00053424,31]
[312928149,1706462497152,330.59,0.00053698,31]
[312928150,1706462501147,1356.72455971,0.00051973,120]
[312928151,1706462501556,1356.72455971,0.0005228,120]
[312928152,1706462501861,1356.72455971,0.00052385,120]
[312928153,1706462502233,1356.72455971,0.00052674,120]
[312928154,1706462503014,1356.72455971,0.00053057,120]
[312928155,1706462503354,1356.72455971,0.00053365,120]
[312928156,1706462503693,500.0,0.00052054,31]
[312928157,1706462503975,500.0,0.00052328,31]
[312928158,1706462504136,1356.72455971,0.00053653,120]
[312928159,1706462504443,1356.72455971,0.00053768,120]
[312928160,1706462504604,500.0,0.00052602,31]
[312928161,1706462504887,500.0,0.00052876,31]
[312928162,1706462504986,1356.72455971,0.00054179,120]
[312928163,1706462505178,620.52274214,0.0005315,31]
[312928164,1706462505306,1356.72455971,0.00054251,120]
[312928165,1706462505629,1356.72455971,0.00054588,120]
[312928166,1706462510935,3419.36,0.00054795,90]
[312928167,1706462511553,500.0,0.00052054,31]
[312928168,1706462511839,500.0,0.00052328,31]
[312928169,1706462512154,500.0,0.00052602,31]
[312928170,1706462512454,500.0,0.00052876,31]
[312928171,1706462512548,500.0,0.00052054,31]
[312928172,1706462512721,353.21487541,0.0005315,31]
[312928173,1706462512819,500.0,0.00052328,31]
[312928174,1706462513087,500.0,0.00052602,31]
[312928175,1706462513691,500.0,0.00052876,31]
[312928176,1706462514297,3000.0,0.00054794,72]
[312928177,1706462514566,353.7375,0.0005315,31]
[312928178,1706462516900,500.0,0.00052054,31]
[312928179,1706462517156,500.0,0.00052328,31]
[312928180,1706462517417,500.0,0.00052602,31]
[312928181,1706462517703,500.0,0.00052876,31]
[312928182,1706462517981,500.0,0.0005315,31]
[312928183,1706462518070,835.56,0.00052054,31]
[312928184,1706462518216,152.67074317,0.00046811,32]
[312928185,1706462518284,500.0,0.00053424,31]
[312928186,1706462518333,835.56,0.00052328,31]
[312928187,1706462518572,500.0,0.00053698,31]
[312928188,1706462518615,835.56,0.00052602,31]
[312928189,1706462518837,284.62987145,0.00053972,31]
[312928190,1706462518881,835.56,0.00052876,31]
[312928191,1706462518918,152.67074317,0.00048481,38]
[312928192,1706462519180,835.56,0.0005315,31]
[312928193,1706462519819,835.56,0.00053424,31]
[312928194,1706462520111,835.56,0.00053698,31]
[312928195,1706462520407,835.56,0.00053972,31]
[312928196,1706462520653,152.67074317,0.00050152,45]
[312928197,1706462520730,835.56,0.00054246,31]
[312928198,1706462520781,152.67074317,0.00051822,51]
[312928199,1706462521023,835.56,0.0005452,120]
[312928200,1706462521310,835.56,0.00054794,120]
[312928201,1706462521443,500.0,0.00052054,31]
[312928202,1706462521515,152.67074317,0.00053493,57]
[312928203,1706462521764,500.0,0.00052328,31]
[312928204,1706462522061,242.01393265,0.00052602,31]
[312928205,1706462523547,210.26,0.00052054,31]
[312928206,1706462525117,500.0,0.00052054,31]
[312928207,1706462525238,500.0,0.00052054,31]
[312928208,1706462525399,500.0,0.00052328,31]
[312928209,1706462525500,634.91045712,0.00052328,31]
[312928210,1706462525673,500.0,0.00052602,31]
[312928211,1706462525944,500.0,0.00052876,31]
[312928212,1706462526216,500.0,0.0005315,31]
[312928213,1706462526612,500.0,0.00053424,31]
[312928214,1706462526813,500.0,0.00053698,31]
[312928215,1706462527093,500.0,0.00053972,31]
[312928216,1706462527351,500.0,0.00054246,31]
[312928217,1706462527620,500.0,0.0005452,120]
[312928218,1706462527881,277.28659835,0.00054794,120]
[312928219,1706462528301,1000.0,0.00054794,120]
[312928220,1706462528571,1000.0,0.00054794,120]
[312928221,1706462529218,1000.0,0.00054794,120]
[312928222,1706462529507,500.0,0.00052054,31]
[312928223,1706462529935,640.31563682,0.00054794,120]
[312928224,1706462530103,500.0,0.00052054,31]
[312928225,1706462530315,500.0,0.00052328,31]
[312928226,1706462530354,500.0,0.00052328,31]
[312928227,1706462530392,300.0,0.00054794,120]
[312928228,1706462530619,341.09684247,0.00052602,31]
[312928229,1706462530657,500.0,0.00052602,31]
[312928230,1706462530840,300.0,0.00054794,120]
[312928231,1706462530888,500.0,0.00052876,31]
[312928232,1706462531193,500.0,0.0005315,31]
[312928233,1706462531275,300.0,0.00054794,120]
[312928234,1706462531662,500.0,0.00053424,31]
[312928235,1706462531897,300.0,0.00054794,120]
[312928236,1706462531933,500.0,0.00053698,31]
[312928237,1706462532270,300.0,0.00054794,120]
[312928238,1706462532546,500.0,0.00053972,31]
[312928239,1706462532584,300.0,0.00054794,120]
[312928240,1706462532812,500.0,0.00054246,31]
[312928241,1706462532896,300.0,0.00054794,120]
[312928242,1706462533085,500.0,0.0005452,120]
[312928243,1706462533176,300.0,0.00054794,120]
[312928244,1706462533348,500.0,0.00054794,120]
[312928245,1706462533440,300.0,0.00054794,120]
[312928246,1706462533713,300.0,0.00054794,120]
[312928247,1706462533982,300.0,0.00054794,120]
[312928248,1706462534424,500.0,0.00052054,31]
[312928249,1706462534679,500.0,0.00052328,31]
[312928250,1706462534935,500.0,0.00052602,31]
[312928251,1706462535212,500.0,0.00052876,31]
[312928252,1706462535485,500.0,0.0005315,31]
[312928253,1706462535778,233.34155875,0.00053424,31]
[312928254,1706462536840,181.25,0.0005312,60]
[312928255,1706462544608,500.0,0.00052054,31]
[312928256,1706462544913,500.0,0.00052328,31]
[312928257,1706462545459,374.73,0.00052602,31]
[312928258,1706462545836,500.0,0.00052054,31]
[312928259,1706462546125,500.0,0.00052328,31]
[312928260,1706462546416,500.0,0.00052602,31]
[312928261,1706462546710,305.6818319,0.00052876,31]
[312928262,1706462549117,500.0,0.00052054,31]
[312928263,1706462549194,500.0,0.00052054,31]
[312928264,1706462549451,633.49940489,0.00052328,31]
[312928265,1706462549821,500.0,0.00052328,31]
[312928266,1706462550104,500.0,0.00052602,31]
[312928267,1706462550779,500.0,0.00052876,31]
[312928268,1706462551066,500.0,0.0005315,31]
[312928269,1706462551355,594.81646185,0.00053424,31]
[312928270,1706462551542,500.0,0.00052054,31]
[312928271,1706462551836,500.0,0.00052328,31]
[312928272,1706462552115,500.0,0.00052602,31]
[312928273,1706462552373,500.0,0.00052876,31]
[312928274,1706462552669,500.0,0.0005315,31]
[312928275,1706462552973,500.0,0.00053424,31]
[312928276,1706462553250,500.0,0.00053698,31]
[312928277,1706462553544,500.0,0.00053972,31]
[312928278,1706462553835,164.0428303,0.00054246,31]
[312928279,1706462554687,280.27055461,0.00052054,31]
[312928280,1706462555782,3000.0,0.00054794,72]
[312928281,1706462556694,1000.0,0.00052391,45]
[312928282,1706462558314,500.0,0.00052054,31]
[312928283,1706462558597,500.0,0.00052328,31]
[312928284,1706462558850,500.0,0.00052602,31]
[312928285,1706462559285,500.0,0.00052876,31]
[312928286,1706462559796,500.0,0.0005315,31]
[312928287,1706462560053,500.0,0.00053424,31]
[312928288,1706462560331,500.0,0.00053698,31]
[312928289,1706462560966,500.0,0.00053972,31]
[312928290,1706462561584,500.0,0.00054246,31]
[312928291,1706462561852,500.0,0.0005452,120]
[312928292,1706462562451,257.51541329,0.00054794,120]
[312928293,1706462570258,20798.07669937,0.00054795,120]
[312928304,1706463031797,-158.19916146,0.00022897,2]
[312928305,1706463031808,-3216.36183013,0.00022899,2]
[312928306,1706463031817,-176.27062022,0.00022995,2]
[312928307,1706463031828,-345.60573259,0.00022995,2]
[312928308,1706463031837,-247.85885747,0.00022996,2]
[312928309,1706463031853,-302.15259034,0.00022997,2]
[312928310,1706463031863,-767.58742384,0.00022997,2]
[312928311,1706463031872,-232.38578002,0.00022997,2]
[312928312,1706463031882,-160.45854719,0.00022997,2]
[312928313,1706463031891,-196.97758643,0.00022997,2]
[312928314,1706463031901,-565.23169648,0.00022997,2]
[312928315,1706463031913,-2792.44610065,0.00022997,2]
[312928316,1706463031924,-186.04753694,0.00022997,2]
[312928317,1706463031936,-1071.96370442,0.00022997,2]
[312928318,1706463031945,-245.21688013,0.00022997,2]
[312928319,1706463031955,-155.37563385,0.00022997,2]
[312928320,1706463031964,-1317.04712678,0.00022997,2]
[312928321,1706463031973,-191.11582529,0.00022997,2]
[312928322,1706463031982,-984.24808758,0.00022997,2]
[312928323,1706463031991,-308.23097893,0.00022997,2]
[312928324,1706463032001,-242.5572894,0.00022997,2]
[312928325,1706463032011,-936.05863322,0.00022997,2]
[312928326,1706463032021,-250.61147486,0.00022997,2]
[312928327,1706463032030,-458.08995678,0.00022997,2]
[312928328,1706463032040,-218.22518431,0.00022997,2]
[312928329,1706463032049,-506.52431985,0.00022997,2]
[312928330,1706463032058,-2642.68092034,0.00022997,2]